bitfinex/quotes_BTCUSD_20250513
["timestamp","ask_amount","ask_price","bid_price","bid_amount"]
[1747104628265,1.96516699,101930.0,101920.0,0.002]
[1747104629785,0.69524783,101930.0,101920.0,0.002]
[1747104630016,0.67994783,101930.0,101920.0,0.002]
[1747104631195,0.94884699,101930.0,101920.0,0.002]
[1747104633235,1.24884699,101930.0,101920.0,0.002]
[1747104633480,1.25884699,101930.0,101920.0,0.002]
[1747104635076,1.55884699,101930.0,101920.0,0.002]
[1747104636544,1.56883133,101930.0,101920.0,0.002]
[1747104637132,0.21591844,101890.0,101880.0,0.23358]
[1747104637342,0.21591844,101890.0,101880.0,0.0305]
[1747104638335,0.21691844,101890.0,101880.0,0.0395]
[1747104638542,0.21691844,101890.0,101880.0,0.0399887]
[1747104638753,0.21791844,101890.0,101880.0,0.0459887]
[1747104638938,0.21691844,101890.0,101880.0,0.0399887]
[1747104639148,0.21691844,101890.0,101880.0,0.0459887]
[1747104639354,0.21791844,101890.0,101880.0,0.31644767]
[1747104639583,0.21791844,101890.0,101880.0,0.10050804]
[1747104639791,0.20710442,101890.0,101880.0,0.09150804]
[1747104639997,0.19829011,101890.0,101880.0,0.09650804]
[1747104640417,0.19829011,101890.0,101880.0,0.24811354]
[1747104640629,0.19829011,101890.0,101880.0,0.0419887]
[1747104643417,0.19829011,101890.0,101880.0,0.0114887]
[1747104643641,0.54794357,101890.0,101880.0,0.0114887]
[1747104645017,0.58084357,101890.0,101880.0,0.0114887]
[1747104645468,0.58763875,101890.0,101880.0,0.0114887]
[1747104645903,0.57133875,101890.0,101880.0,0.0114887]
[1747104646529,0.55473875,101890.0,101880.0,0.0114887]
[1747104646737,0.75773875,101890.0,101880.0,0.0114887]
[1747104648239,0.77413875,101890.0,101880.0,0.0114887]
[1747104649046,0.75773875,101890.0,101880.0,0.0114887]
[1747104649513,0.50393959,101890.0,101880.0,0.0114887]
[1747104649966,0.30093959,101890.0,101880.0,0.0114887]
[1747104650186,0.30093959,101890.0,101880.0,0.0422887]
[1747104650187,0.29414441,101890.0,101880.0,0.0422887]
[1747104651174,0.19829011,101890.0,101880.0,0.0422887]
[1747104651414,0.19829011,101890.0,101880.0,0.25822843]
[1747104651415,0.02162833,101890.0,101880.0,0.25822843]
[1747104651628,0.21791844,101890.0,101880.0,0.0422887]
[1747104651868,0.21791844,101890.0,101880.0,0.05210407]
[1747104652123,0.21791844,101890.0,101880.0,0.52184286]
[1747104652342,0.02162755,101890.0,101880.0,0.6420528]
[1747104652600,0.05107028,101890.0,101880.0,0.5461985]
[1747104652816,0.22773284,101890.0,101880.0,0.28258455]
[1747104653313,0.20810451,101890.0,101880.0,0.05682955]
[1747104653550,0.20810451,101890.0,101880.0,0.0422887]
[1747104655170,0.002,101890.0,101880.0,0.63014349]
[1747104655397,0.002,101890.0,101880.0,0.73581258]
[1747104655621,0.01181363,101890.0,101880.0,0.64205271]
[1747104655826,0.02162755,101890.0,101880.0,0.64205271]
[1747104656031,0.02162746,101890.0,101880.0,1.04205271]
[1747104656245,0.02162746,101890.0,101880.0,1.13790701]
[1747104656623,0.03144148,101890.0,101880.0,1.04205271]
[1747104656962,0.02162746,101890.0,101880.0,1.04205271]
[1747104657169,0.03144138,101890.0,101880.0,1.04205271]
[1747104657566,0.0412555,101890.0,101880.0,1.04205271]
[1747104657813,0.05106981,101890.0,101880.0,1.04205271]
[1747104658017,0.23754696,101890.0,101880.0,0.68258474]
[1747104658232,0.23754696,101890.0,101880.0,0.67276966]
[1747104658432,0.23754696,101890.0,101880.0,0.68258474]
[1747104658433,0.22773304,101890.0,101880.0,0.68258474]
[1747104658663,0.22773304,101890.0,101880.0,0.0422887]
[1747104658909,0.21791892,101890.0,101880.0,0.0422887]
[1747104659410,0.21791892,101890.0,101880.0,0.0266887]
[1747104659868,0.21791892,101890.0,101880.0,0.0114887]
[1747104660540,0.31377322,101890.0,101880.0,0.0114887]
[1747104660816,0.80179238,101890.0,101880.0,0.0114887]
[1747104662719,1.14179238,101890.0,101880.0,0.0114887]
[1747104663599,1.14079238,101890.0,101880.0,0.0054887]
[1747104663818,0.89099322,101890.0,101880.0,0.0054887]
[1747104664036,0.65677322,101890.0,101880.0,0.0054887]
[1747104664422,0.65577322,101890.0,101880.0,0.0004887]
[1747104664674,0.65977322,101890.0,101880.0,0.0014887]
[1747104665103,0.91357238,101890.0,101880.0,0.0014887]
[1747104665955,0.94467238,101890.0,101880.0,0.0014887]
[1747104668087,0.65977322,101890.0,101880.0,0.0014887]
[1747104668774,0.31977322,101890.0,101880.0,0.0014887]
[1747104668987,0.22391892,101890.0,101880.0,0.0341887]
[1747104669201,0.57357238,101890.0,101880.0,0.0014887]
[1747104669381,0.91357238,101890.0,101880.0,0.0014887]
[1747104670716,0.65977322,101890.0,101880.0,0.0014887]
[1747104670921,0.91357238,101890.0,101880.0,0.0014887]
[1747104673629,0.94667238,101890.0,101880.0,0.0014887]
[1747104674511,0.97390851,101890.0,101880.0,0.0014887]
[1747104674966,1.74070767,101890.0,101880.0,0.0014887]
[1747104675445,1.75070767,101890.0,101880.0,0.0014887]
[1747104676130,1.74670767,101890.0,101880.0,0.0014887]
[1747104676352,1.75170767,101890.0,101880.0,0.0014887]
[1747104677144,1.49390851,101890.0,101880.0,0.0004887]
[1747104677324,1.75170767,101890.0,101880.0,0.0004887]
[1747104678184,1.17790851,101890.0,101880.0,0.0004887]
[1747104678391,1.69078851,101890.0,101880.0,0.0004887]
[1747104678615,1.66355238,101890.0,101880.0,0.0004887]
[1747104678838,1.33705238,101890.0,101880.0,0.0004887]
[1747104679065,1.33045238,101890.0,101880.0,0.0004887]
[1747104679719,0.32077322,101890.0,101880.0,0.0165887]
[1747104679941,0.57457238,101890.0,101880.0,0.0004887]
[1747104680633,0.91457238,101890.0,101880.0,0.0004887]
[1747104680861,1.11745238,101890.0,101880.0,0.0004887]
[1747104681574,0.86365322,101890.0,101880.0,0.0168887]
[1747104681810,0.86365322,101890.0,101880.0,0.0333887]
[1747104682048,0.32077322,101890.0,101880.0,0.0333887]
[1747104682956,0.21510461,101890.0,101880.0,0.04320416]
[1747104683173,0.02862881,101890.0,101880.0,0.25914379]
[1747104683430,0.22491892,101890.0,101880.0,0.0333887]
[1747104683845,0.22091892,101890.0,101880.0,0.04320416]
[1747104683982,0.22191892,101890.0,101880.0,0.04320416]
[1747104684172,0.21691892,101890.0,101880.0,0.04320416]
[1747104684381,0.21791892,101890.0,101880.0,0.04320416]
[1747104684594,0.21791892,101890.0,101880.0,0.0333887]
[1747104685031,0.21791892,101890.0,101880.0,0.04320416]
[1747104685276,0.03144196,101890.0,101880.0,0.28349963]
[1747104685481,0.03144206,101890.0,101880.0,0.28349963]
[1747104685699,0.03144196,101890.0,101880.0,0.28349963]
[1747104685938,0.02162775,101890.0,101880.0,0.53729879]
[1747104686142,0.23754657,101890.0,101880.0,0.27368484]
[1747104686586,0.03144196,101890.0,101880.0,0.28349963]
[1747104686808,0.03144196,101890.0,101880.0,0.63193105]
[1747104686809,0.002,101890.0,101880.0,0.63193105]
[1747104687040,0.01181383,101890.0,101880.0,0.63193105]
[1747104687305,0.03144216,101890.0,101880.0,1.03193105]
[1747104687538,0.02162785,101890.0,101880.0,1.03193105]
[1747104687770,0.05107087,101890.0,101880.0,0.69344558]
[1747104688224,0.02162785,101890.0,101880.0,0.94724474]
[1747104688462,0.02162795,101890.0,101880.0,0.94724474]
[1747104688692,0.03144226,101890.0,101880.0,0.94724474]
[1747104689616,0.23754677,101890.0,101880.0,0.68363079]
[1747104689862,0.24736127,101890.0,101880.0,0.69344577]
[1747104690072,0.03144226,101890.0,101880.0,0.70326056]
[1747104690298,0.03144226,101890.0,101880.0,0.95705972]
[1747104690729,0.02162795,101890.0,101880.0,1.05291402]
[1747104690936,0.03144226,101890.0,101880.0,0.95705972]
[1747104691161,0.01181383,101890.0,101880.0,1.16065972]
[1747104691360,0.02162795,101890.0,101880.0,1.16065972]
[1747104691678,0.02162785,101890.0,101880.0,1.16065972]
[1747104691987,0.02162785,101890.0,101880.0,1.25651402]
[1747104691988,0.01181383,101890.0,101880.0,1.25651402]
[1747104692195,0.03144216,101890.0,101880.0,0.89704577]
[1747104692416,0.04125656,101890.0,101880.0,0.90686056]
[1747104692620,0.23754734,101890.0,101880.0,0.6614755]
[1747104692819,0.21791901,101890.0,101880.0,0.0168887]
[1747104693044,0.21791901,101890.0,101880.0,0.0004887]
[1747104693206,0.31377331,101890.0,101880.0,0.0004887]
[1747104693828,0.31377331,101890.0,101880.0,0.0161887]
[1747104694034,0.31377331,101890.0,101880.0,0.0313887]
[1747104694898,0.21791901,101890.0,101880.0,0.09192989]
[1747104695099,0.21791901,101890.0,101880.0,0.56166888]
[1747104695320,0.21791901,101890.0,101880.0,0.51566873]
[1747104695537,0.21791901,101890.0,101880.0,0.26186957]
[1747104695861,0.20810461,101890.0,101880.0,0.26186957]
[1747104696279,0.19829011,101890.0,101880.0,0.2520543]
[1747104696604,0.19829011,101890.0,101880.0,0.26186957]
[1747104697024,0.19829011,101890.0,101880.0,0.66186957]
[1747104697734,0.19829011,101890.0,101880.0,0.44592955]
[1747104698776,0.19829011,101890.0,101880.0,0.4313887]
[1747104698975,0.19829011,101890.0,101880.0,0.4004887]
[1747104699244,0.19829011,101890.0,101880.0,0.0004887]
[1747104700474,0.29414441,101890.0,101880.0,0.0004887]
[1747104702248,1.12364357,101890.0,101880.0,0.0004887]
[1747104702703,1.20194827,101890.0,101880.0,0.0004887]
[1747104702915,1.46574743,101890.0,101880.0,0.0004887]
[1747104703148,2.10097902,101890.0,101880.0,0.0004887]
[1747104703385,2.20597902,101890.0,101880.0,0.0004887]
[1747104703610,1.95217986,101890.0,101880.0,0.0004887]
[1747104704075,2.20597902,101890.0,101880.0,0.0004887]
[1747104704298,2.21097902,101890.0,101880.0,0.0004887]
[1747104704717,2.13267432,101890.0,101880.0,0.0004887]
[1747104704997,2.12767432,101890.0,101880.0,0.0004887]
[1747104705395,1.85264357,101890.0,101880.0,0.0004887]
[1747104705803,1.84764357,101890.0,101880.0,0.0004887]
[1747104706237,1.85464357,101890.0,101880.0,0.0004887]
[1747104706854,1.24464357,101890.0,101880.0,0.0004887]
[1747104706991,1.54464357,101890.0,101880.0,0.0004887]
[1747104708761,1.43692357,101890.0,101880.0,0.0004887]
[1747104708965,1.40482357,101890.0,101880.0,0.0004887]
[1747104709604,0.99894357,101890.0,101880.0,0.0004887]
[1747104709813,1.40486357,101890.0,101880.0,0.0004887]
[1747104710275,1.43746357,101890.0,101880.0,0.0004887]
[1747104711383,1.40486357,101890.0,101880.0,0.0004887]
[1747104711934,1.20182357,101890.0,101880.0,0.0004887]
[1747104712148,1.40514357,101890.0,101880.0,0.0004887]
[1747104713781,0.94802441,101890.0,101880.0,0.0004887]
[1747104714028,1.15130441,101890.0,101880.0,0.0162887]
[1747104714223,0.94834441,101890.0,101880.0,0.0162887]
[1747104714874,1.20214357,101890.0,101880.0,0.0004887]
[1747104716359,1.20214357,101890.0,101880.0,0.0163887]
[1747104716775,0.94830441,101890.0,101880.0,0.0163887]
[1747104716967,0.94830441,101890.0,101880.0,0.0313887]
[1747104717182,0.74514441,101890.0,101880.0,0.0313887]
[1747104717362,0.64514441,101890.0,101880.0,0.0313887]
[1747104718168,0.20329011,101890.0,101880.0,0.0313887]
[1747104718612,0.20629011,101890.0,101880.0,0.0313887]
[1747104718815,0.20910451,101890.0,101880.0,0.22769808]
[1747104719060,0.21891863,101890.0,101880.0,0.50112788]
[1747104719274,0.22291863,101890.0,101880.0,0.51566873]
[1747104719410,0.21891863,101890.0,101880.0,0.51566873]
[1747104719639,0.21891863,101890.0,101880.0,0.27168494]
[1747104719870,0.21691863,101890.0,101880.0,0.26286976]
[1747104720042,0.20710451,101890.0,101880.0,0.31048748]
[1747104720242,0.20710451,101890.0,101880.0,0.32130275]
[1747104720549,0.20710451,101890.0,101880.0,0.27268503]
[1747104721351,0.20710451,101890.0,101880.0,0.67268503]
[1747104721824,0.20710451,101890.0,101880.0,0.94611378]
[1747104721825,0.02062852,101890.0,101880.0,0.94611378]
[1747104722052,0.21691863,101890.0,101880.0,0.91666873]
[1747104722266,0.21691863,101890.0,101880.0,0.66286957]
[1747104722457,0.21791863,101890.0,101880.0,0.66586957]
[1747104722747,0.002,101890.0,101880.0,0.71809922]
[1747104722943,0.002,101890.0,101880.0,1.87472663]
[1747104723152,0.01181363,101890.0,101880.0,1.62092747]
[1747104723377,0.002,101890.0,101880.0,1.62092747]
[1747104725256,0.002,101890.0,101880.0,1.87472663]
[1747104726213,0.01181383,101890.0,101880.0,1.82376747]
[1747104726441,0.21791844,101890.0,101880.0,0.44505004]
[1747104726639,0.21791844,101890.0,101880.0,0.4353887]
[1747104727380,0.21791844,101890.0,101880.0,0.04992955]
[1747104728468,0.21791844,101890.0,101880.0,0.05974501]
[1747104728698,0.21791844,101890.0,101880.0,0.14961058]
[1747104729384,0.21791844,101890.0,101880.0,0.0353887]
[1747104731495,0.21791844,101890.0,101880.0,0.0203887]
[1747104731914,0.21791844,101890.0,101880.0,0.0044887]
[1747104732128,0.21791844,101890.0,101880.0,0.0203887]
[1747104732765,0.21791844,101890.0,101880.0,0.0357887]
[1747104735041,0.21791844,101890.0,101880.0,0.0203887]
[1747104736216,0.21791844,101890.0,101880.0,0.0365887]
[1747104738185,0.21791844,101890.0,101880.0,0.0203887]
[1747104738755,0.88781274,101890.0,101880.0,0.0044887]
[1747104738963,1.1416119,101890.0,101880.0,0.0044887]
[1747104739604,1.1396119,101890.0,101880.0,0.0004887]
[1747104739805,1.1446119,101890.0,101880.0,0.0004887]
[1747104740002,1.1496119,101890.0,101880.0,0.0004887]
[1747104740840,1.3529319,101890.0,101880.0,0.0004887]
[1747104742950,0.9467719,101890.0,101880.0,0.0004887]
[1747104743173,0.66177274,101890.0,101880.0,0.0004887]
[1747104743412,0.22591844,101890.0,101880.0,0.0311887]
[1747104743636,0.22591844,101890.0,101880.0,0.28937137]
[1747104743637,0.01,101890.0,101880.0,0.28937137]
[1747104743865,0.01,101890.0,101880.0,0.91734125]
[1747104744297,0.02962775,101890.0,101880.0,0.91734125]
[1747104744520,0.04925656,101890.0,101880.0,1.31734125]
[1747104744768,0.03444206,101890.0,101880.0,1.31734125]
[1747104744994,0.04425656,101890.0,101880.0,1.31734125]
[1747104745202,0.02062775,101890.0,101880.0,1.32815633]
[1747104745412,0.03044206,101890.0,101880.0,1.33797112]
[1747104745643,0.01581373,101890.0,101880.0,1.43482542]
[1747104746097,0.02062765,101890.0,101880.0,1.43382542]
[1747104746345,0.01181373,101890.0,101880.0,1.43682542]
[1747104746562,0.002,101890.0,101880.0,1.69062458]
[1747104747449,0.19621308,101930.0,101920.0,0.23724375]
[1747104747696,0.19621308,101930.0,101920.0,0.0312]
[1747104747941,0.20604375,101920.0,101910.0,0.24858085]
[1747104748175,0.01962274,101920.0,101910.0,0.47426901]
[1747104748412,0.01962235,101920.0,101910.0,0.97012331]
[1747104748776,0.019671,101920.0,101910.0,0.96031141]
[1747104748996,0.019671,101920.0,101910.0,1.31977677]
[1747104748997,0.02948166,101920.0,101910.0,1.31977677]
[1747104749220,0.03348166,101920.0,101910.0,1.31977677]
[1747104749475,0.04929308,101920.0,101910.0,1.31096487]
[1747104749710,0.03948233,101920.0,101910.0,1.31096487]
[1747104749968,0.22590363,101920.0,101910.0,1.30115268]
[1747104750248,0.22590363,101920.0,101910.0,1.31096506]
[1747104750494,0.22590363,101920.0,101910.0,1.32077735]
[1747104750709,0.22590363,101920.0,101910.0,1.33058954]
[1747104751196,0.22590363,101920.0,101910.0,1.34062244]
[1747104751404,0.01985949,101920.0,101910.0,1.6042335]
[1747104751638,0.01004865,101920.0,101910.0,1.35043434]
[1747104752329,0.00404865,101920.0,101910.0,1.34943434]
[1747104752587,0.0098594,101920.0,101910.0,1.34943434]
[1747104752801,0.0108594,101920.0,101910.0,1.35543434]
[1747104753023,0.02067024,101920.0,101910.0,1.35543434]
[1747104753218,0.0108594,101920.0,101910.0,1.35743434]
[1747104753418,0.02067034,101920.0,101910.0,1.36143434]
[1747104754355,0.02067034,101920.0,101910.0,1.15859434]
[1747104754573,0.02067034,101920.0,101910.0,0.3518872]
[1747104754574,0.21690353,101920.0,101910.0,0.3518872]
[1747104754781,0.21690353,101920.0,101910.0,0.012]
[1747104754782,0.47070269,101920.0,101910.0,0.012]
[1747104755221,0.56655699,101920.0,101910.0,0.012]
[1747104755437,0.31275783,101920.0,101910.0,0.012]
[1747104755648,0.2257103,101900.0,101890.0,0.6583646]
[1747104755861,0.20608429,101900.0,101890.0,0.54811515]
[1747104756070,0.20608429,101900.0,101890.0,0.5335743]
[1747104756314,0.20608429,101900.0,101890.0,0.54811515]
[1747104756786,0.20608429,101900.0,101890.0,0.5433888]
[1747104757186,0.20708429,101900.0,101890.0,0.5405743]
[1747104757402,0.20708429,101900.0,101890.0,0.55511515]
[1747104757623,0.20708429,101900.0,101890.0,0.77103397]
[1747104757857,0.20708429,101900.0,101890.0,0.55511515]
[1747104758807,0.001,101900.0,101890.0,1.13050107]
[1747104759222,0.002,101900.0,101890.0,1.87850107]
[1747104760056,0.002,101900.0,101890.0,1.88822122]
[1747104761605,4.865e-05,101920.0,101900.0,0.35454085]
[1747104761818,4.865e-05,101920.0,101910.0,1.62440356]
[1747104762135,4.865e-05,101920.0,101910.0,2.04648163]
[1747104762313,4.865e-05,101920.0,101910.0,2.44648163]
[1747104763437,0.00104865,101920.0,101910.0,2.45448163]
[1747104764296,0.00204865,101920.0,101910.0,2.20768247]
[1747104764510,0.00204865,101920.0,101910.0,2.04973761]
[1747104764723,0.00204865,101920.0,101910.0,2.30353677]
[1747104766377,0.00204865,101920.0,101910.0,2.55733593]
[1747104766712,0.02210765,101920.0,101910.0,2.55733593]
[1747104767327,0.02210765,101920.0,101910.0,2.04973761]
[1747104767541,0.02210765,101920.0,101910.0,2.30353677]
[1747104770086,0.02210765,101920.0,101910.0,1.64337761]
[1747104770306,0.00100069,101940.0,101930.0,0.24018472]
[1747104770536,0.01961264,101970.0,101960.0,0.24010244]
[1747104770783,0.01975758,101980.0,101970.0,0.23029027]
[1747104771054,0.2256803,101980.0,101970.0,0.23029046]
[1747104771391,0.2256803,101980.0,101970.0,0.24009707]
[1747104771611,0.2256803,101980.0,101970.0,0.33595118]
[1747104771832,0.2256803,101980.0,101970.0,0.33595137]
[1747104772316,0.21587494,101980.0,101970.0,0.11039515]
[1747104773905,0.21587494,101980.0,101970.0,0.12020195]
[1747104774099,0.21587494,101980.0,101970.0,0.11139515]
[1747104774262,0.21587494,101980.0,101970.0,0.12120195]
[1747104774471,0.21587494,101980.0,101970.0,0.13100865]
[1747104774696,0.21587494,101980.0,101970.0,0.12120195]
[1747104774899,0.21587494,101980.0,101970.0,0.60251744]
[1747104774900,0.00995154,101980.0,101970.0,0.60251744]
[1747104775103,0.02956197,101980.0,101970.0,0.61685628]
[1747104775304,0.00014657,101980.0,101970.0,0.63305628]
[1747104775728,0.00014657,101980.0,101970.0,0.83653628]
[1747104776233,0.00014657,101980.0,101970.0,0.93239058]
[1747104776457,0.00014657,101980.0,101970.0,1.33239058]
[1747104776659,0.00995164,101980.0,101970.0,1.33239058]
[1747104777464,0.00995164,101980.0,101970.0,1.07859142]
[1747104779148,0.02956226,101980.0,101970.0,1.07859142]
[1747104779349,0.01975681,101980.0,101970.0,1.07859142]
[1747104780280,0.00014657,101980.0,101970.0,1.07859142]
[1747104780493,0.00995154,101980.0,101970.0,1.07859142]
[1747104780684,0.01975671,101980.0,101970.0,1.41859142]
[1747104781362,0.01975671,101980.0,101970.0,1.67239058]
[1747104781583,0.02956197,101980.0,101970.0,1.67239058]
[1747104782254,0.03936752,101980.0,101970.0,1.67239058]
[1747104782488,0.03936742,101980.0,101970.0,1.67239058]
[1747104782687,0.01975671,101980.0,101970.0,1.67239058]
[1747104782916,0.02956207,101980.0,101970.0,1.67239058]
[1747104783160,0.21587446,101980.0,101970.0,1.16186085]
[1747104783401,0.21587446,101980.0,101970.0,0.74732]
[1747104783632,0.24827446,101980.0,101970.0,0.001]
[1747104786279,0.21587446,101980.0,101970.0,0.22148357]
[1747104786489,0.21587446,101980.0,101970.0,0.22148376]
[1747104786808,0.21587446,101980.0,101970.0,0.32714476]
[1747104787061,0.02956226,101980.0,101970.0,0.62666278]
[1747104787265,0.02956226,101980.0,101970.0,0.64176278]
[1747104787740,0.02956226,101980.0,101970.0,1.04176278]
[1747104788184,0.01975681,101980.0,101970.0,1.04176278]
[1747104788400,0.03936791,101980.0,101970.0,1.04176278]
[1747104788896,0.01975681,101980.0,101970.0,1.04176278]
[1747104789122,0.02956226,101980.0,101970.0,1.04176278]
[1747104789311,0.02956226,101980.0,101970.0,1.47761708]
[1747104789312,0.00014657,101980.0,101970.0,1.47761708]
[1747104789436,0.00995154,101980.0,101970.0,1.47761708]
[1747104789885,0.00014657,101980.0,101970.0,1.47761708]
[1747104790781,0.00995174,101980.0,101970.0,1.47761708]
[1747104790999,0.00995164,101980.0,101970.0,1.47761708]
[1747104791224,0.02956265,101980.0,101970.0,1.47761708]
[1747104791470,0.00995164,101980.0,101970.0,1.47761708]
[1747104791693,0.00995164,101980.0,101970.0,1.46251708]
[1747104792156,0.00995164,101980.0,101970.0,1.47771708]
[1747104792343,0.01975681,101980.0,101970.0,1.47771708]
[1747104792555,0.00995164,101980.0,101970.0,1.22391792]
[1747104792754,0.019757,101980.0,101970.0,1.22391792]
[1747104793443,0.0197569,101980.0,101970.0,1.22391792]
[1747104793641,0.00014657,101980.0,101970.0,1.47771708]
[1747104795373,0.00014657,101980.0,101970.0,1.68039708]
[1747104795571,0.00014657,101980.0,101970.0,1.93419624]
[1747104797350,0.00014657,101980.0,101970.0,1.68039708]
[1747104798992,0.00014657,101980.0,101970.0,1.11286362]
[1747104799210,0.22567981,101980.0,101970.0,0.20456]
[1747104799423,0.21587464,101980.0,101970.0,0.5543668]
[1747104799637,0.23806919,101980.0,101970.0,0.001]
[1747104800076,0.22196919,101980.0,101970.0,0.02534765]
[1747104800276,0.20606919,101980.0,101970.0,0.07276538]
[1747104800492,0.03863852,101980.0,101970.0,0.28851432]
[1747104800711,0.0484435,101980.0,101970.0,0.54231348]
[1747104800954,0.03863776,101980.0,101970.0,0.55211961]
[1747104801388,0.05824934,101980.0,101970.0,0.28851432]
[1747104801607,0.04917442,101980.0,101970.0,0.29832054]
[1747104802059,0.04917442,101980.0,101970.0,0.30812667]
[1747104802307,0.04917442,101980.0,101970.0,0.70812667]
[1747104803742,0.03936858,101980.0,101970.0,0.70812667]
[1747104804944,0.04917442,101980.0,101970.0,0.70812667]
[1747104805346,0.03936858,101980.0,101970.0,0.30812667]
[1747104805568,0.04917442,101980.0,101970.0,0.25090281]
[1747104805805,0.04917442,101980.0,101970.0,0.65090281]
[1747104806217,0.04917442,101980.0,101970.0,0.66070894]
[1747104807367,0.03936858,101980.0,101970.0,0.66070894]
[1747104808595,0.01975719,101980.0,101970.0,0.66070894]
[1747104808812,0.02956284,101980.0,101970.0,0.26070894]
[1747104809021,0.03936858,101980.0,101970.0,0.26070894]
[1747104809401,0.03936858,101980.0,101970.0,0.66070894]
[1747104809654,0.03936858,101980.0,101970.0,0.75656324]
[1747104811412,0.02956284,101980.0,101970.0,0.75656324]
[1747104811833,0.03936858,101980.0,101970.0,0.75656324]
[1747104812057,0.04917442,101980.0,101970.0,0.41554085]
[1747104812274,0.24797503,101980.0,101970.0,0.01554085]
[1747104815525,0.24797503,101980.0,101970.0,0.23325133]
[1747104815526,0.21587503,101980.0,101970.0,0.23325133]
[1747104815694,0.21587503,101980.0,101970.0,0.23129017]
[1747104815906,0.00995183,101980.0,101970.0,0.52070188]
[1747104816080,0.00995183,101980.0,101970.0,0.61462078]
[1747104816081,0.02956284,101980.0,101970.0,0.61462078]
[1747104816447,0.01975719,101980.0,101970.0,1.03022078]
[1747104816653,0.02956284,101980.0,101970.0,0.76082162]
[1747104816857,0.23548556,101980.0,101970.0,0.62148366]
[1747104817065,0.21587494,101980.0,101970.0,0.63129027]
[1747104817501,0.21587494,101980.0,101970.0,0.64109669]
[1747104817946,0.21587494,101980.0,101970.0,0.24109669]
[1747104818153,0.21587494,101980.0,101970.0,0.25090301]
[1747104819497,0.21587494,101980.0,101970.0,0.22148376]
[1747104819746,0.21587494,101980.0,101970.0,0.24109707]
[1747104819970,0.21587494,101980.0,101970.0,0.26071]
[1747104820632,0.02956332,101980.0,101970.0,0.2509032]
[1747104820874,0.02956245,101980.0,101970.0,0.53100772]
[1747104821114,0.04917394,101980.0,101970.0,0.63235589]
[1747104821323,0.23548575,101980.0,101970.0,0.63235589]
[1747104821591,0.23548575,101980.0,101970.0,0.37855673]
[1747104821820,0.23448575,101980.0,101970.0,0.37855673]
[1747104822310,0.23448575,101980.0,101970.0,0.76875051]
[1747104822544,0.21572837,101980.0,101970.0,0.73383806]
[1747104822722,0.21572837,101980.0,101970.0,0.71733806]
[1747104822928,0.21572837,101980.0,101970.0,0.72714476]
[1747104823159,0.21572837,101980.0,101970.0,0.33695137]
[1747104823556,0.21572837,101980.0,101970.0,0.24109707]
[1747104823815,0.00980565,101980.0,101970.0,0.65769678]
[1747104824040,0.02941675,101980.0,101970.0,0.93720236]
[1747104824531,0.22553363,101980.0,101970.0,0.6834032]
[1747104824703,0.22553363,101980.0,101970.0,0.7792575]
[1747104825334,0.22553363,101980.0,101970.0,0.78906382]
[1747104825734,0.03922259,101980.0,101970.0,0.78906325]
[1747104827690,0.03922259,101980.0,101970.0,0.38906325]
[1747104828206,0.03922259,101980.0,101970.0,0.78906325]
[1747104828437,0.00980536,101980.0,101970.0,0.78906325]
[1747104828687,0.20522711,101990.0,101980.0,0.24987955]
[1747104828688,0.02873811,101990.0,101980.0,0.24987955]
[1747104828883,0.02873715,101990.0,101980.0,1.26912731]
[1747104829107,0.04834614,101990.0,101980.0,1.26912731]
[1747104829305,0.04834614,101990.0,101980.0,1.16912731]
[1747104829448,0.03854155,101990.0,101980.0,1.19854396]
[1747104829656,0.04834604,101990.0,101980.0,1.19854396]
[1747104829856,0.0392172,101990.0,101980.0,1.19854396]
[1747104830112,0.00980401,101990.0,101980.0,1.19854396]
[1747104830331,0.02941232,101990.0,101980.0,1.19854396]
[1747104830641,0.04321672,101990.0,101980.0,1.19854396]
[1747104831292,0.04321672,101990.0,101980.0,1.21308481]
[1747104831505,0.004,101990.0,101980.0,1.21308481]
[1747104831708,0.009,101990.0,101980.0,1.61308481]
[1747104833153,0.009,101990.0,101980.0,2.03680481]
[1747104833587,0.005,101990.0,101980.0,2.03680481]
[1747104834096,0.005,101990.0,101980.0,2.03780481]
[1747104835070,0.02940705,102010.0,102000.0,0.24002987]
[1747104835269,0.02940705,102010.0,102000.0,0.8697753]
[1747104835482,0.00980219,102010.0,102000.0,0.8697753]
[1747104835699,0.01960457,102010.0,102000.0,0.8697753]
[1747104835897,0.01960457,102010.0,102000.0,1.2697753]
[1747104836326,0.009,102010.0,102000.0,1.86457446]
[1747104836538,0.019,102010.0,102000.0,1.86557446]
[1747104836752,0.01,102010.0,102000.0,1.86357446]
[1747104836971,0.01,102010.0,102000.0,1.86457446]
[1747104837222,0.01,102010.0,102000.0,1.6107753]
[1747104837683,0.01,102010.0,102000.0,1.86457446]
[1747104838412,0.01960236,102020.0,102010.0,0.59716691]
[1747104838590,0.01974885,102020.0,102010.0,1.24519467]
[1747104838804,0.02955027,102020.0,102010.0,1.24519467]
[1747104839017,0.2353932,102020.0,102010.0,0.66149421]
[1747104839220,0.02955122,102020.0,102010.0,1.28831734]
[1747104839435,0.03935321,102020.0,102010.0,1.28831734]
[1747104839651,0.02955122,102020.0,102010.0,1.29811982]
[1747104839813,0.02955122,102020.0,102010.0,1.28831754]
[1747104840017,0.04915492,102020.0,102010.0,1.29811992]
[1747104840460,0.24519491,102020.0,102010.0,1.28831754]
[1747104840626,0.24519491,102020.0,102010.0,1.28814464]
[1747104840827,0.02955103,102020.0,102010.0,1.28814464]
[1747104841062,0.03935283,102020.0,102010.0,1.66420038]
[1747104842420,0.23539282,102020.0,102010.0,1.05625721]
[1747104842620,0.21578989,102020.0,102010.0,1.25873731]
[1747104842835,0.21578989,102020.0,102010.0,1.26854017]
[1747104843035,0.0197499,102020.0,102010.0,1.2881455]
[1747104843278,0.0295518,102020.0,102010.0,1.29794778]
[1747104843487,0.21579037,102020.0,102010.0,0.21702085]
[1747104843699,0.24729037,102020.0,102010.0,0.21702085]
[1747104843950,0.24729037,102020.0,101990.0,0.23748575]
[1747104843951,0.21568578,102000.0,101990.0,0.23748575]
[1747104844172,0.02941012,102000.0,101990.0,1.56212324]
[1747104844394,0.02941012,102000.0,101990.0,1.59603295]
[1747104844830,0.01960659,102000.0,101990.0,1.86543211]
[1747104845045,0.22546759,102010.0,102000.0,0.55568559]
[1747104845270,0.21566502,102010.0,102000.0,0.54588215]
[1747104845490,0.21566502,102010.0,102000.0,0.65154008]
[1747104845697,0.01960582,102010.0,102000.0,0.65154008]
[1747104845899,0.01960582,102010.0,102000.0,0.91514277]
[1747104845900,0.21566502,102010.0,102000.0,0.91514277]
[1747104846108,0.21566502,102010.0,102000.0,0.66134361]
[1747104846336,0.21566502,102010.0,102000.0,0.66334361]
[1747104846542,0.21566502,102010.0,102000.0,0.66534361]
[1747104846977,0.21566502,102010.0,102000.0,0.56948931]
[1747104847418,0.23736216,102010.0,102000.0,0.344]
[1747104847627,0.23736216,102010.0,102000.0,0.35380392]
[1747104847835,0.22156216,102010.0,102000.0,0.56948989]
[1747104848043,0.20586216,102010.0,102000.0,0.56948989]